[Event "Titled Tuesday Blitz March 07 Early 2023"]
[White "Buscar, Michael"]
[Black "Jakubowski, Krzysztof"]
[WhiteFideId "2603616"]
[BlackFideId "1112848"]
[WhiteElo "2010"]
[BlackElo "2359"]
[Result "0-1"]
[Round "01"]
[TimeControl "180+2"]
[Date "2023.03.07"]
[WhiteClock "0:00:03"]
[BlackClock "0:00:07"]

1. Nf3 {[%clk 0:02:59]}  Nf6 {[%clk 0:02:58]} 2. c4 {[%clk 0:02:58]}  c5 {[%clk 0:02:56]} 3. g3 {[%clk 0:02:56]}  d5 {[%clk 0:02:56]} 4. cxd5 {[%clk 0:02:55]}  Nxd5 {[%clk 0:02:56]} 5. Bg2 {[%clk 0:02:55]}  Nc6 {[%clk 0:02:56]} 6. Nc3 {[%clk 0:02:52]}  Nc7 {[%clk 0:02:55]} 7. O-O {[%clk 0:02:30]}  e5 {[%clk 0:02:53]} 8. d3 {[%clk 0:02:29]}  Be7 {[%clk 0:02:51]} 9. Be3 {[%clk 0:02:25]}  O-O {[%clk 0:02:46]} 10. Ne4 {[%clk 0:02:19]}  b6 {[%clk 0:02:38]} 11. Nfd2 {[%clk 0:02:06]}  Bd7 {[%clk 0:02:32]} 12. Nc4 {[%clk 0:02:03]}  Kh8 {[%clk 0:02:18]} 13. f4 {[%clk 0:02:04]}  exf4 {[%clk 0:01:57]} 14. Bxf4 {[%clk 0:02:02]}  Ne6 {[%clk 0:01:56]} 15. Bd6 {[%clk 0:01:58]}  f5 {[%clk 0:01:52]} 16. Nc3 {[%clk 0:01:46]}  Rc8 {[%clk 0:01:49]} 17. Kh1 {[%clk 0:01:38]}  Be8 {[%clk 0:01:18]} 18. Bxe7 {[%clk 0:01:28]}  Qxe7 {[%clk 0:01:19]} 19. Nd5 {[%clk 0:01:29]}  Qd8 {[%clk 0:01:13]} 20. Nf4 {[%clk 0:01:27]}  Nxf4 {[%clk 0:01:08]} 21. Rxf4 {[%clk 0:01:27]}  Nd4 {[%clk 0:01:05]} 22. e4 {[%clk 0:01:13]}  Bb5 {[%clk 0:00:45]} 23. Qh5 {[%clk 0:00:53]}  g6 {[%clk 0:00:39]} 24. Qh6 {[%clk 0:00:52]}  Bxc4 {[%clk 0:00:27]} 25. dxc4 {[%clk 0:00:51]}  Qe7 {[%clk 0:00:18]} 26. Raf1 {[%clk 0:00:40]}  Rcd8 {[%clk 0:00:16]} 27. e5 {[%clk 0:00:19]}  Rfe8 {[%clk 0:00:12]} 28. Rh4 {[%clk 0:00:19]}  Qg7 {[%clk 0:00:11]} 29. Qg5 {[%clk 0:00:14]}  Rd7 {[%clk 0:00:10]} 30. Bd5 {[%clk 0:00:11]}  Rde7 {[%clk 0:00:09]} 31. Bc6 {[%clk 0:00:07]}  Nxc6 {[%clk 0:00:08]} 32. Rd1 {[%clk 0:00:04]}  Nd4 {[%clk 0:00:08]} 33. b4 {[%clk 0:00:04]}  Rxe5 {[%clk 0:00:08]} 34. Qd2 {[%clk 0:00:03]}  Re2 {[%clk 0:00:07]} 35. Qd3 {[%clk 0:00:03]}  Qb7+ {[%clk 0:00:07]} 36. Kg1 {[%clk 0:00:03]}  Qg2# {[%clk 0:00:07]} 0-1


[Site "https://www.chess.com"]

[Event "Titled Tuesday Blitz March 07 Early 2023"]
[White "Di Nicolantonio, Lucas"]
[Black "Szente Varga, Fruzsina"]
[WhiteFideId "680460"]
[BlackFideId "712264"]
[WhiteElo "2358"]
[BlackElo "1994"]
[Result "0-1"]
[Round "01"]
[TimeControl "180+2"]
[Date "2023.03.07"]
[WhiteClock "0:00:03"]
[BlackClock "0:00:17"]

1. Nf3 {[%clk 0:03:00]}  Nf6 {[%clk 0:02:57]} 2. c4 {[%clk 0:02:59]}  c6 {[%clk 0:02:57]} 3. Nc3 {[%clk 0:02:58]}  d5 {[%clk 0:02:57]} 4. e3 {[%clk 0:02:59]}  g6 {[%clk 0:02:57]} 5. d4 {[%clk 0:02:58]}  Bg7 {[%clk 0:02:57]} 6. h3 {[%clk 0:02:59]}  O-O {[%clk 0:02:57]} 7. Bd3 {[%clk 0:03:00]}  Re8 {[%clk 0:02:53]} 8. O-O {[%clk 0:02:59]}  Nbd7 {[%clk 0:02:53]} 9. cxd5 {[%clk 0:02:53]}  cxd5 {[%clk 0:02:54]} 10. Bd2 {[%clk 0:02:53]}  e5 {[%clk 0:02:47]} 11. dxe5 {[%clk 0:02:54]}  Nxe5 {[%clk 0:02:48]} 12. Nxe5 {[%clk 0:02:55]}  Rxe5 {[%clk 0:02:47]} 13. Ne2 {[%clk 0:02:55]}  Bf5 {[%clk 0:02:35]} 14. Bc3 {[%clk 0:02:52]}  Ne4 {[%clk 0:01:57]} 15. Bxe5 {[%clk 0:02:30]}  Bxe5 {[%clk 0:01:58]} 16. Nd4 {[%clk 0:02:00]}  Qh4 {[%clk 0:01:40]} 17. Nf3 {[%clk 0:01:31]}  Qf6 {[%clk 0:01:40]} 18. Nxe5 {[%clk 0:01:31]}  Qxe5 {[%clk 0:01:40]} 19. Bxe4 {[%clk 0:01:30]}  Bxe4 {[%clk 0:01:21]} 20. Qd4 {[%clk 0:01:30]}  Qg5 {[%clk 0:01:21]} 21. f3 {[%clk 0:01:30]}  Bf5 {[%clk 0:01:21]} 22. Kh2 {[%clk 0:00:58]}  Be6 {[%clk 0:01:18]} 23. Rac1 {[%clk 0:00:56]}  h5 {[%clk 0:01:08]} 24. h4 {[%clk 0:00:54]}  Qe7 {[%clk 0:01:06]} 25. Rc3 {[%clk 0:00:53]}  Re8 {[%clk 0:00:56]} 26. Rfc1 {[%clk 0:00:51]}  Qd6+ {[%clk 0:00:55]} 27. g3 {[%clk 0:00:45]}  Qa6 {[%clk 0:00:48]} 28. R1c2 {[%clk 0:00:42]}  Qxa2 {[%clk 0:00:43]} 29. Rc7 {[%clk 0:00:39]}  Qa6 {[%clk 0:00:34]} 30. Kg2 {[%clk 0:00:31]}  Bf5 {[%clk 0:00:24]} 31. Rd2 {[%clk 0:00:25]}  Be6 {[%clk 0:00:23]} 32. Kf2 {[%clk 0:00:24]}  Qa1 {[%clk 0:00:21]} 33. Rdc2 {[%clk 0:00:23]}  Qh1 {[%clk 0:00:21]} 34. Qe5 {[%clk 0:00:17]}  Qh2+ {[%clk 0:00:20]} 35. Ke1 {[%clk 0:00:18]}  Qg1+ {[%clk 0:00:19]} 36. Kd2 {[%clk 0:00:18]}  Qg2+ {[%clk 0:00:19]} 37. Kd3 {[%clk 0:00:12]}  Qxf3 {[%clk 0:00:19]} 38. Qf4 {[%clk 0:00:09]}  Bf5+ {[%clk 0:00:18]} 39. Kd4 {[%clk 0:00:08]}  Qd1+ {[%clk 0:00:16]} 40. Kc5 {[%clk 0:00:03]}  Qxc2+ {[%clk 0:00:17]} 41. Kd6 {[%clk 0:00:04]}  Qe4 {[%clk 0:00:15]} 42. Qxe4 {[%clk 0:00:03]}  Bxe4 {[%clk 0:00:16]} 43. Rxb7 {[%clk 0:00:04]}  Rc8 {[%clk 0:00:16]} 44. Rxa7 {[%clk 0:00:04]}  Rb8 {[%clk 0:00:16]} 45. b4 {[%clk 0:00:04]}  Rxb4 {[%clk 0:00:16]} 46. Ke5 {[%clk 0:00:04]}  Kg7 {[%clk 0:00:17]} 47. Rc7 {[%clk 0:00:03]}  Rb3 {[%clk 0:00:17]} 48. Kf4 {[%clk 0:00:03]}  Rb1 {[%clk 0:00:17]} 49. g4 {[%clk 0:00:03]}  Rf1+ {[%clk 0:00:17]} 50. Kg5 {[%clk 0:00:03]}  hxg4 {[%clk 0:00:17]} 0-1


[Site "https://www.chess.com"]

[Event "Titled Tuesday Blitz March 07 Early 2023"]
[White "Jiganchine, Roman"]
[Black "Issani, Nameer"]
[WhiteFideId "2603667"]
[BlackFideId "2619130"]
[WhiteElo "2300"]
[BlackElo "2613"]
[Result "1/2-1/2"]
[Round "01"]
[TimeControl "180+2"]
[Date "2023.03.07"]
[WhiteClock "0:00:44"]
[BlackClock "0:00:20"]

1. e4 {[%clk 0:02:58]}  e5 {[%clk 0:02:56]} 2. Nf3 {[%clk 0:02:53]}  Nc6 {[%clk 0:02:57]} 3. Nc3 {[%clk 0:02:53]}  Nf6 {[%clk 0:02:57]} 4. Bb5 {[%clk 0:02:53]}  Nd4 {[%clk 0:02:56]} 5. O-O {[%clk 0:02:52]}  Nxf3+ {[%clk 0:02:54]} 6. Qxf3 {[%clk 0:02:51]}  Bc5 {[%clk 0:02:54]} 7. d3 {[%clk 0:02:48]}  c6 {[%clk 0:02:51]} 8. Bc4 {[%clk 0:02:47]}  h6 {[%clk 0:02:51]} 9. Be3 {[%clk 0:02:38]}  Bxe3 {[%clk 0:02:36]} 10. fxe3 {[%clk 0:02:38]}  O-O {[%clk 0:02:36]} 11. Bb3 {[%clk 0:02:36]}  d6 {[%clk 0:02:31]} 12. h3 {[%clk 0:02:35]}  a5 {[%clk 0:02:26]} 13. a4 {[%clk 0:02:33]}  Be6 {[%clk 0:02:25]} 14. Bxe6 {[%clk 0:02:06]}  fxe6 {[%clk 0:02:26]} 15. b3 {[%clk 0:01:59]}  Qe7 {[%clk 0:02:19]} 16. Kh1 {[%clk 0:01:53]}  Rad8 {[%clk 0:01:55]} 17. Qg3 {[%clk 0:01:52]}  Nh7 {[%clk 0:01:51]} 18. Ne2 {[%clk 0:01:41]}  Ng5 {[%clk 0:01:38]} 19. Qg4 {[%clk 0:01:39]}  d5 {[%clk 0:01:20]} 20. Ng3 {[%clk 0:01:32]}  Nh7 {[%clk 0:01:11]} 21. exd5 {[%clk 0:01:22]}  exd5 {[%clk 0:01:02]} 22. e4 {[%clk 0:01:22]}  Nf6 {[%clk 0:00:52]} 23. Qg6 {[%clk 0:01:21]}  Qe8 {[%clk 0:00:44]} 24. Qxe8 {[%clk 0:01:08]}  Rfxe8 {[%clk 0:00:43]} 25. Rae1 {[%clk 0:01:06]}  Kf7 {[%clk 0:00:31]} 26. Nf5 {[%clk 0:01:03]}  dxe4 {[%clk 0:00:30]} 27. dxe4 {[%clk 0:00:58]}  Rd2 {[%clk 0:00:30]} 28. Ne3 {[%clk 0:00:57]}  Ke6 {[%clk 0:00:28]} 29. Nf5 {[%clk 0:00:44]}  Kf7 {[%clk 0:00:22]} 30. Ne3 {[%clk 0:00:44]}  Ke6 {[%clk 0:00:21]} 31. Nf5 {[%clk 0:00:44]}  Kf7 {[%clk 0:00:20]} 1/2-1/2


[Site "https://www.chess.com"]

[Event "Titled Tuesday Blitz March 07 Early 2023"]
[White "Vargas Rodriguez, Wilver"]
[Black "Zampronha, Wladimir Camilo"]
[WhiteFideId "3509672"]
[BlackFideId "2103087"]
[WhiteElo "2238"]
[BlackElo "2176"]
[Result "1-0"]
[Round "01"]
[TimeControl "180+2"]
[Date "2023.03.07"]
[WhiteClock "0:00:12"]
[BlackClock "0:01:08"]

1. e4 {[%clk 0:02:55]}  c5 {[%clk 0:02:59]} 2. Nf3 {[%clk 0:02:55]}  e6 {[%clk 0:02:59]} 3. d4 {[%clk 0:02:51]}  cxd4 {[%clk 0:03:00]} 4. Nxd4 {[%clk 0:02:52]}  Nc6 {[%clk 0:03:01]} 5. Nf3 {[%clk 0:02:48]}  Nf6 {[%clk 0:02:57]} 6. Bg5 {[%clk 0:02:38]}  Qb6 {[%clk 0:02:52]} 7. Bxf6 {[%clk 0:02:30]}  gxf6 {[%clk 0:02:53]} 8. b3 {[%clk 0:02:22]}  Bc5 {[%clk 0:02:44]} 9. Qd2 {[%clk 0:02:11]}  Ne5 {[%clk 0:02:42]} 10. Nxe5 {[%clk 0:02:06]}  fxe5 {[%clk 0:02:43]} 11. Bc4 {[%clk 0:02:00]}  d6 {[%clk 0:02:05]} 12. O-O {[%clk 0:01:50]}  a5 {[%clk 0:02:05]} 13. Qg5 {[%clk 0:01:10]}  Qd8 {[%clk 0:01:39]} 14. Qg7 {[%clk 0:01:01]}  Ke7 {[%clk 0:01:39]} 15. Qg5+ {[%clk 0:01:00]}  Kd7 {[%clk 0:01:37]} 16. Qh5 {[%clk 0:00:36]}  Qf6 {[%clk 0:01:35]} 17. Nd2 {[%clk 0:00:23]}  Kc7 {[%clk 0:01:35]} 18. Rad1 {[%clk 0:00:17]}  Bd7 {[%clk 0:01:35]} 19. a4 {[%clk 0:00:13]}  Rhg8 {[%clk 0:01:34]} 20. Bb5 {[%clk 0:00:12]}  Bxb5 {[%clk 0:01:19]} 21. axb5 {[%clk 0:00:13]}  Rg5 {[%clk 0:01:08]} 22. Qf3 {[%clk 0:00:12]}  Rag8 {[%clk 0:01:08]} 23. Qxf6 {[%clk 0:00:12]} 1-0


[Site "https://www.chess.com"]

[Event "Titled Tuesday Blitz March 07 Early 2023"]
[White "Perez Gormaz, Matias"]
[Black "Abrosimov, Vladimir"]
[WhiteFideId "3406342"]
[BlackFideId "4166892"]
[WhiteElo "2362"]
[BlackElo "2336"]
[Result "1-0"]
[Round "01"]
[TimeControl "180+2"]
[Date "2023.03.07"]
[WhiteClock "0:00:15"]
[BlackClock "0:00:22"]

1. Nf3 {[%clk 0:02:59]}  d5 {[%clk 0:03:00]} 2. b3 {[%clk 0:02:57]}  Nf6 {[%clk 0:02:57]} 3. Bb2 {[%clk 0:02:58]}  Bf5 {[%clk 0:02:57]} 4. g3 {[%clk 0:02:57]}  e6 {[%clk 0:02:57]} 5. Bg2 {[%clk 0:02:57]}  c6 {[%clk 0:02:56]} 6. O-O {[%clk 0:02:58]}  h6 {[%clk 0:02:56]} 7. d3 {[%clk 0:02:58]}  Be7 {[%clk 0:02:53]} 8. Nbd2 {[%clk 0:02:59]}  O-O {[%clk 0:02:53]} 9. c4 {[%clk 0:02:59]}  Nbd7 {[%clk 0:02:53]} 10. a3 {[%clk 0:02:59]}  Nb6 {[%clk 0:02:50]} 11. b4 {[%clk 0:02:54]}  a5 {[%clk 0:02:39]} 12. Qb3 {[%clk 0:02:50]}  a4 {[%clk 0:02:33]} 13. Qa2 {[%clk 0:02:48]}  Nbd7 {[%clk 0:02:29]} 14. Rac1 {[%clk 0:02:46]}  Rc8 {[%clk 0:02:27]} 15. Qb1 {[%clk 0:02:38]}  Nb6 {[%clk 0:02:25]} 16. Qa1 {[%clk 0:02:22]}  Qd7 {[%clk 0:02:18]} 17. Bd4 {[%clk 0:02:19]}  Na8 {[%clk 0:02:17]} 18. Rfd1 {[%clk 0:02:15]}  c5 {[%clk 0:02:12]} 19. bxc5 {[%clk 0:02:12]}  Bxc5 {[%clk 0:02:13]} 20. Bxf6 {[%clk 0:02:12]}  gxf6 {[%clk 0:02:10]} 21. Qxf6 {[%clk 0:02:02]}  Bxa3 {[%clk 0:02:10]} 22. Rb1 {[%clk 0:01:53]}  Kh7 {[%clk 0:01:57]} 23. cxd5 {[%clk 0:01:42]}  exd5 {[%clk 0:01:51]} 24. Ne5 {[%clk 0:01:31]}  Qe7 {[%clk 0:01:36]} 25. Qxf5+ {[%clk 0:01:30]}  Kg7 {[%clk 0:01:33]} 26. Ndf3 {[%clk 0:01:23]}  Bd6 {[%clk 0:01:21]} 27. Qg4+ {[%clk 0:01:23]}  Kh7 {[%clk 0:01:18]} 28. Bh3 {[%clk 0:01:13]}  f5 {[%clk 0:01:09]} 29. Qg6+ {[%clk 0:01:12]}  Kh8 {[%clk 0:01:04]} 30. Qxh6+ {[%clk 0:01:12]}  Kg8 {[%clk 0:01:03]} 31. Ng6 {[%clk 0:01:10]}  Qf6 {[%clk 0:00:59]} 32. Rxb7 {[%clk 0:01:03]}  Rc7 {[%clk 0:00:54]} 33. Rxc7 {[%clk 0:00:55]}  Bxc7 {[%clk 0:00:52]} 34. Qxf8+ {[%clk 0:00:51]}  Qxf8 {[%clk 0:00:51]} 35. Nxf8 {[%clk 0:00:52]}  Kxf8 {[%clk 0:00:52]} 36. Bxf5 {[%clk 0:00:49]}  a3 {[%clk 0:00:51]} 37. Be6 {[%clk 0:00:48]}  Nb6 {[%clk 0:00:50]} 38. e4 {[%clk 0:00:45]}  Ke7 {[%clk 0:00:44]} 39. Bxd5 {[%clk 0:00:45]}  Kd6 {[%clk 0:00:43]} 40. Bb3 {[%clk 0:00:44]}  Kc5 {[%clk 0:00:43]} 41. Rc1+ {[%clk 0:00:38]}  Kb4 {[%clk 0:00:41]} 42. Rxc7 {[%clk 0:00:34]}  Kxb3 {[%clk 0:00:37]} 43. Nd2+ {[%clk 0:00:33]}  Kb4 {[%clk 0:00:29]} 44. Rc1 {[%clk 0:00:22]}  Na4 {[%clk 0:00:26]} 45. Ra1 {[%clk 0:00:20]}  Nb2 {[%clk 0:00:26]} 46. h4 {[%clk 0:00:19]}  Nxd3 {[%clk 0:00:26]} 47. h5 {[%clk 0:00:18]}  Ne5 {[%clk 0:00:26]} 48. h6 {[%clk 0:00:18]}  Nf7 {[%clk 0:00:27]} 49. h7 {[%clk 0:00:18]}  Nh8 {[%clk 0:00:25]} 50. g4 {[%clk 0:00:18]}  Ng6 {[%clk 0:00:24]} 51. g5 {[%clk 0:00:18]}  Nh8 {[%clk 0:00:24]} 52. f4 {[%clk 0:00:19]}  Ng6 {[%clk 0:00:24]} 53. f5 {[%clk 0:00:19]}  Nh8 {[%clk 0:00:25]} 54. g6 {[%clk 0:00:19]}  Kc3 {[%clk 0:00:25]} 55. Rxa3+ {[%clk 0:00:19]}  Kd4 {[%clk 0:00:25]} 56. g7 {[%clk 0:00:19]}  Nf7 {[%clk 0:00:25]} 57. h8=Q {[%clk 0:00:19]}  Ne5 {[%clk 0:00:25]} 58. g8=Q {[%clk 0:00:17]}  Kc5 {[%clk 0:00:22]} 59. Qxe5+ {[%clk 0:00:16]}  Kb4 {[%clk 0:00:22]} 60. Qb3# {[%clk 0:00:15]} 1-0


[Site "https://www.chess.com"]

[Event "Titled Tuesday Blitz March 07 Early 2023"]
[White "Manelyuk, Daniil"]
[Black "Bove, Alessandro"]
[WhiteFideId "44173920"]
[BlackFideId "814121"]
[WhiteElo "2259"]
[BlackElo "2387"]
[Result "1-0"]
[Round "01"]
[TimeControl "180+2"]
[Date "2023.03.07"]
[WhiteClock "0:01:56"]
[BlackClock "0:02:11"]

1. e4 {[%clk 0:03:00]}  c5 {[%clk 0:02:58]} 2. Nf3 {[%clk 0:02:59]}  d6 {[%clk 0:02:58]} 3. d4 {[%clk 0:02:58]}  cxd4 {[%clk 0:02:59]} 4. Nxd4 {[%clk 0:02:59]}  Nf6 {[%clk 0:03:00]} 5. Nc3 {[%clk 0:02:59]}  g6 {[%clk 0:03:00]} 6. f3 {[%clk 0:02:59]}  Bg7 {[%clk 0:03:01]} 7. Be3 {[%clk 0:02:59]}  O-O {[%clk 0:03:02]} 8. Qd2 {[%clk 0:02:57]}  Nc6 {[%clk 0:03:02]} 9. O-O-O {[%clk 0:02:57]}  Bd7 {[%clk 0:03:00]} 10. Kb1 {[%clk 0:02:48]}  Qc7 {[%clk 0:02:58]} 11. h4 {[%clk 0:02:44]}  Rfc8 {[%clk 0:02:58]} 12. g4 {[%clk 0:02:41]}  Ne5 {[%clk 0:02:57]} 13. h5 {[%clk 0:02:39]}  Qa5 {[%clk 0:02:57]} 14. hxg6 {[%clk 0:02:36]}  fxg6 {[%clk 0:02:57]} 15. g5 {[%clk 0:02:13]}  Nh5 {[%clk 0:02:53]} 16. f4 {[%clk 0:02:10]}  Nc4 {[%clk 0:02:40]} 17. Bxc4+ {[%clk 0:02:02]}  Rxc4 {[%clk 0:02:41]} 18. Nb3 {[%clk 0:02:02]}  Qd8 {[%clk 0:02:24]} 19. Qd5+ {[%clk 0:02:01]}  Kf8 {[%clk 0:02:15]} 20. Qxc4 {[%clk 0:02:00]}  Rc8 {[%clk 0:02:16]} 21. Qd3 {[%clk 0:01:59]}  b5 {[%clk 0:02:14]} 22. f5 {[%clk 0:01:58]}  Ng3 {[%clk 0:02:12]} 23. Rxh7 {[%clk 0:01:57]}  b4 {[%clk 0:02:11]} 24. Nd5 {[%clk 0:01:56]} 1-0


[Site "https://www.chess.com"]

[Event "Titled Tuesday Blitz March 07 Early 2023"]
[White "Bews, Steven"]
[Black "Wilson, Elvin"]
[WhiteFideId "2400529"]
[BlackFideId "2014874"]
[WhiteElo "2607"]
[BlackElo "2288"]
[Result "1-0"]
[Round "01"]
[TimeControl "180+2"]
[Date "2023.03.07"]
[WhiteClock "0:00:34"]
[BlackClock "0:00:21"]

1. e4 {[%clk 0:02:44]}  e6 {[%clk 0:02:58]} 2. d4 {[%clk 0:02:43]}  d5 {[%clk 0:02:59]} 3. Nd2 {[%clk 0:02:42]}  c5 {[%clk 0:02:57]} 4. Ngf3 {[%clk 0:02:34]}  cxd4 {[%clk 0:02:57]} 5. Nxd4 {[%clk 0:02:33]}  Nc6 {[%clk 0:02:57]} 6. Nxc6 {[%clk 0:02:33]}  bxc6 {[%clk 0:02:57]} 7. Bd3 {[%clk 0:02:33]}  Bd6 {[%clk 0:02:57]} 8. O-O {[%clk 0:02:33]}  Qc7 {[%clk 0:02:55]} 9. Nf3 {[%clk 0:02:31]}  Ne7 {[%clk 0:02:52]} 10. Re1 {[%clk 0:02:28]}  Ng6 {[%clk 0:02:51]} 11. h4 {[%clk 0:02:15]}  O-O {[%clk 0:02:44]} 12. h5 {[%clk 0:02:14]}  Ne5 {[%clk 0:02:42]} 13. h6 {[%clk 0:02:06]}  g6 {[%clk 0:02:38]} 14. b3 {[%clk 0:01:59]}  Nxf3+ {[%clk 0:02:33]} 15. Qxf3 {[%clk 0:01:58]}  Be5 {[%clk 0:02:34]} 16. Rb1 {[%clk 0:01:58]}  f5 {[%clk 0:02:28]} 17. exd5 {[%clk 0:01:55]}  cxd5 {[%clk 0:02:15]} 18. Rxe5 {[%clk 0:01:50]}  Qxe5 {[%clk 0:02:12]} 19. Bb2 {[%clk 0:01:50]}  Qc7 {[%clk 0:02:00]} 20. Re1 {[%clk 0:01:49]}  Bd7 {[%clk 0:01:49]} 21. Qe3 {[%clk 0:01:48]}  Rae8 {[%clk 0:01:20]} 22. Be5 {[%clk 0:01:23]}  f4 {[%clk 0:01:02]} 23. Qd4 {[%clk 0:01:12]}  Qb6 {[%clk 0:01:01]} 24. Qb2 {[%clk 0:01:10]}  Bb5 {[%clk 0:00:54]} 25. Bxb5 {[%clk 0:00:42]}  Qxb5 {[%clk 0:00:53]} 26. Bd6 {[%clk 0:00:42]}  Rf7 {[%clk 0:00:50]} 27. Qe5 {[%clk 0:00:42]}  f3 {[%clk 0:00:42]} 28. Ba3 {[%clk 0:00:39]}  Qa5 {[%clk 0:00:27]} 29. Bb2 {[%clk 0:00:37]}  Rf6 {[%clk 0:00:22]} 30. Qxf6 {[%clk 0:00:34]}  Qxe1+ {[%clk 0:00:21]} 31. Kh2 {[%clk 0:00:34]} 1-0


[Site "https://www.chess.com"]

[Event "Titled Tuesday Blitz March 07 Early 2023"]
[White "Lauridsen, Jesper Morch"]
[Black "Moksh Amit Doshi"]
[WhiteFideId "1401890"]
[BlackFideId "25064967"]
[WhiteElo "2288"]
[BlackElo "2297"]
[Result "1-0"]
[Round "01"]
[TimeControl "180+2"]
[Date "2023.03.07"]
[WhiteClock "0:00:15"]
[BlackClock "0:00:32"]

1. e4 {[%clk 0:02:58]}  c5 {[%clk 0:02:28]} 2. c3 {[%clk 0:02:58]}  d5 {[%clk 0:02:25]} 3. exd5 {[%clk 0:02:58]}  Nf6 {[%clk 0:02:26]} 4. d4 {[%clk 0:02:58]}  Nxd5 {[%clk 0:02:20]} 5. Bb5+ {[%clk 0:02:56]}  Nc6 {[%clk 0:02:12]} 6. Nf3 {[%clk 0:02:39]}  cxd4 {[%clk 0:02:10]} 7. Nxd4 {[%clk 0:02:31]}  Bd7 {[%clk 0:02:09]} 8. O-O {[%clk 0:02:23]}  e6 {[%clk 0:02:01]} 9. Re1 {[%clk 0:02:19]}  Be7 {[%clk 0:01:59]} 10. Bxc6 {[%clk 0:02:08]}  bxc6 {[%clk 0:01:58]} 11. Nd2 {[%clk 0:02:08]}  O-O {[%clk 0:01:57]} 12. N2f3 {[%clk 0:02:06]}  c5 {[%clk 0:01:57]} 13. Nb3 {[%clk 0:02:01]}  Ba4 {[%clk 0:01:53]} 14. Qe2 {[%clk 0:01:52]}  Rb8 {[%clk 0:01:52]} 15. Ne5 {[%clk 0:01:49]}  Qc7 {[%clk 0:01:50]} 16. Nd2 {[%clk 0:01:40]}  Rfd8 {[%clk 0:01:25]} 17. Nxf7 {[%clk 0:01:31]}  Kxf7 {[%clk 0:01:07]} 18. Qxe6+ {[%clk 0:01:29]}  Kf8 {[%clk 0:01:07]} 19. Nf3 {[%clk 0:01:23]}  Rb6 {[%clk 0:01:04]} 20. Qg4 {[%clk 0:01:10]}  Be8 {[%clk 0:00:58]} 21. Bg5 {[%clk 0:01:06]}  Rg6 {[%clk 0:00:56]} 22. Bxe7+ {[%clk 0:00:59]}  Nxe7 {[%clk 0:00:57]} 23. Qh3 {[%clk 0:00:54]}  Bc6 {[%clk 0:00:57]} 24. Ne5 {[%clk 0:00:40]}  Kg8 {[%clk 0:00:58]} 25. Nxg6 {[%clk 0:00:36]}  Nxg6 {[%clk 0:00:59]} 26. Rad1 {[%clk 0:00:35]}  Rxd1 {[%clk 0:00:53]} 27. Qe6+ {[%clk 0:00:23]}  Kh8 {[%clk 0:00:53]} 28. Rxd1 {[%clk 0:00:22]}  Nf4 {[%clk 0:00:51]} 29. Qxc6 {[%clk 0:00:18]}  Qe7 {[%clk 0:00:35]} 30. Qd6 {[%clk 0:00:16]}  Ne2+ {[%clk 0:00:31]} 31. Kf1 {[%clk 0:00:16]}  Qe8 {[%clk 0:00:32]} 32. Qd8 {[%clk 0:00:15]} 1-0


[Site "https://www.chess.com"]

[Event "Titled Tuesday Blitz March 07 Early 2023"]
[White "Chylewski, Patryk"]
[Black "Tsyhanchuk, Stanislav"]
[WhiteFideId "1186191"]
[BlackFideId "13505130"]
[WhiteElo "2163"]
[BlackElo "2173"]
[Result "1-0"]
[Round "01"]
[TimeControl "180+2"]
[Date "2023.03.07"]
[WhiteClock "0:00:09"]
[BlackClock "0:00:17"]

1. e4 {[%clk 0:02:59]}  c5 {[%clk 0:02:59]} 2. Nf3 {[%clk 0:02:57]}  d6 {[%clk 0:02:59]} 3. c3 {[%clk 0:02:57]}  Nf6 {[%clk 0:02:50]} 4. h3 {[%clk 0:02:56]}  Bd7 {[%clk 0:02:47]} 5. Bd3 {[%clk 0:02:50]}  Nc6 {[%clk 0:02:45]} 6. Bc2 {[%clk 0:02:47]}  b5 {[%clk 0:02:39]} 7. O-O {[%clk 0:02:46]}  g6 {[%clk 0:02:39]} 8. Re1 {[%clk 0:02:45]}  Bg7 {[%clk 0:02:39]} 9. d4 {[%clk 0:02:45]}  cxd4 {[%clk 0:02:38]} 10. cxd4 {[%clk 0:02:46]}  O-O {[%clk 0:02:36]} 11. e5 {[%clk 0:02:43]}  Nd5 {[%clk 0:02:22]} 12. Be4 {[%clk 0:02:36]}  Be6 {[%clk 0:02:21]} 13. Ng5 {[%clk 0:02:19]}  dxe5 {[%clk 0:02:11]} 14. Nxe6 {[%clk 0:02:19]}  fxe6 {[%clk 0:02:09]} 15. dxe5 {[%clk 0:02:17]}  Bxe5 {[%clk 0:01:57]} 16. Bh6 {[%clk 0:02:04]}  Bg7 {[%clk 0:01:48]} 17. Bxg7 {[%clk 0:02:03]}  Kxg7 {[%clk 0:01:49]} 18. Nd2 {[%clk 0:01:45]}  Nd4 {[%clk 0:01:38]} 19. Nf1 {[%clk 0:01:41]}  Nf5 {[%clk 0:01:36]} 20. Bxf5 {[%clk 0:01:21]}  exf5 {[%clk 0:01:21]} 21. Re5 {[%clk 0:01:12]}  Nf4 {[%clk 0:00:59]} 22. Rxb5 {[%clk 0:00:46]}  Qxd1 {[%clk 0:00:45]} 23. Rxd1 {[%clk 0:00:47]}  Rab8 {[%clk 0:00:43]} 24. Rxb8 {[%clk 0:00:41]}  Rxb8 {[%clk 0:00:42]} 25. Rd2 {[%clk 0:00:24]}  Kf6 {[%clk 0:00:31]} 26. h4 {[%clk 0:00:24]}  e5 {[%clk 0:00:29]} 27. g3 {[%clk 0:00:22]}  Ne6 {[%clk 0:00:26]} 28. Ne3 {[%clk 0:00:20]}  Nd4 {[%clk 0:00:25]} 29. Kg2 {[%clk 0:00:21]}  Ke6 {[%clk 0:00:23]} 30. b3 {[%clk 0:00:20]}  a5 {[%clk 0:00:20]} 31. Nc4 {[%clk 0:00:13]}  a4 {[%clk 0:00:17]} 32. bxa4 {[%clk 0:00:14]}  Rb4 {[%clk 0:00:17]} 33. Nb2 {[%clk 0:00:13]}  Kd5 {[%clk 0:00:17]} 34. Kf1 {[%clk 0:00:11]}  Kc5 {[%clk 0:00:17]} 35. Nd3+ {[%clk 0:00:10]}  Kc4 {[%clk 0:00:17]} 36. Nxb4 {[%clk 0:00:11]}  Kxb4 {[%clk 0:00:18]} 37. Rb2+ {[%clk 0:00:09]}  Kxa4 {[%clk 0:00:18]} 38. Rb7 {[%clk 0:00:10]}  h5 {[%clk 0:00:18]} 39. Rg7 {[%clk 0:00:10]}  f4 {[%clk 0:00:18]} 40. Rxg6 {[%clk 0:00:09]}  Nf3 {[%clk 0:00:17]} 41. gxf4 {[%clk 0:00:08]}  exf4 {[%clk 0:00:17]} 42. Rf6 {[%clk 0:00:09]} 1-0


[Site "https://www.chess.com"]